bitfinex/quotes_SOLUSD_20241218
["timestamp","ask_amount","ask_price","bid_price","bid_amount"]
[1734506772832,7.26252529,215.88,215.77,2.63917829]
[1734506773023,7.26252529,215.87,215.76,10.4277]
[1734506773228,7.26252529,215.87,215.81,7.26252529]
[1734506773550,7.26252529,215.89,215.82,7.26252529]
[1734506773734,7.26252529,215.89,215.83,7.26252529]
[1734506773930,20.0,215.91,215.84,7.26252529]
[1734506774145,20.0,215.89,215.85,7.26252529]
[1734506774545,1.568,215.95,215.87,7.26252529]
[1734506774733,7.26252529,215.94,215.88,7.26252529]
[1734506775553,1.568,215.95,215.88,7.26252529]
[1734506775853,1.568,215.95,215.89,7.26252529]
[1734506776351,8.83052529,215.95,215.88,7.26252529]
[1734506777933,28.83052529,215.95,215.88,7.26252529]
[1734506779259,21.568,215.95,215.88,7.26252529]
[1734506779457,28.83052529,215.95,215.88,7.26252529]
[1734506779638,28.83052529,215.95,215.82,36.34609688]
[1734506779639,22.315,215.98,215.91,7.26252529]
[1734506779835,1.6364,216.0,215.94,7.26252529]
[1734506780054,20.83296,216.02,215.95,7.26252529]
[1734506780240,28.09548529,216.02,215.95,7.26252529]
[1734506780435,7.26252529,216.01,215.94,7.26252529]
[1734506781135,20.0,215.98,215.94,7.26252529]
[1734506784337,20.0,215.98,215.93,7.26252529]
[1734506784766,7.26252529,215.97,215.9,6.0402]
[1734506784976,7.26252529,215.96,215.9,6.0402]
[1734506785338,7.26252529,215.94,215.87,7.26252529]
[1734506786049,7.26252529,215.92,215.84,6.0402]
[1734506786252,7.26252529,215.91,215.84,13.30272529]
[1734506786636,7.26252529,215.9,215.83,7.26252529]
[1734506787057,7.26252529,215.88,215.79,6.0402]
[1734506787255,7.26252529,215.86,215.79,13.30272529]
[1734506787643,20.0,215.89,215.8,7.26252529]
[1734506787839,7.26252529,215.86,215.8,7.26252529]
[1734506791138,20.0,215.86,215.8,7.26252529]
[1734506791760,27.26252529,215.86,215.79,13.30272529]
[1734506792164,27.26252529,215.86,215.79,6.0402]
[1734506792361,27.26252529,215.86,215.8,7.26252529]
[1734506794370,7.26252529,215.84,215.74,6.5031]
[1734506794609,7.26252529,215.83,215.77,7.26252529]
[1734506795484,7.26252529,215.82,215.76,7.26252529]
[1734506797418,23.776884,215.84,215.77,7.26252529]
[1734506797712,7.26252529,215.83,215.77,7.26252529]
[1734506798305,7.26252529,215.83,215.76,7.26252529]
[1734506798501,2.3164,215.85,215.75,7.26252529]
[1734506798502,7.26252529,215.81,215.75,7.26252529]
[1734506798825,20.0,215.86,215.69,6.5031]
[1734506798826,7.26252529,215.8,215.69,6.5031]
[1734506799029,7.26252529,215.8,215.73,7.26252529]
[1734506800018,7.26252529,215.78,215.72,7.26252529]
[1734506800186,7.26252529,215.78,215.71,7.26252529]
[1734506800385,7.26252529,215.8,215.73,7.26252529]
[1734506801162,7.26252529,215.79,215.73,7.26252529]
[1734506801999,38.82801419,215.88,215.78,7.26252529]
[1734506802000,1.572,215.88,215.78,7.26252529]
[1734506802196,7.26252529,215.87,215.8,7.26252529]
[1734506802411,7.26252529,215.84,215.78,7.26252529]
[1734506803593,2.3162,215.87,215.77,7.26252529]
[1734506803594,7.26252529,215.83,215.77,7.26252529]
[1734506804106,7.20673075,215.83,215.77,7.26252529]
[1734506804415,7.20673075,215.83,215.72,1.94539944]
[1734506804623,7.20673075,215.83,215.76,7.26252529]
[1734506805214,7.20673075,215.83,215.77,7.26252529]
[1734506805729,7.26252529,215.84,215.78,7.26252529]
[1734506805906,7.26252529,215.83,215.77,7.26252529]
[1734506806299,7.26252529,215.83,215.76,7.26252529]
[1734506806526,7.26252529,215.81,215.75,7.26252529]
[1734506806932,7.26252529,215.82,215.76,7.26252529]
[1734506807102,23.776884,215.84,215.77,7.26252529]
[1734506807302,7.26252529,215.83,215.77,7.26252529]
[1734506808731,7.26252529,215.78,215.72,7.26252529]
[1734506808898,7.26252529,215.77,215.71,7.26252529]
[1734506809101,7.26252529,215.76,215.7,7.26252529]
[1734506809304,1.6004,215.8,215.69,6.5031]
[1734506809305,7.26252529,215.75,215.69,6.5031]
[1734506809607,7.26252529,215.75,215.68,7.26252529]
[1734506809907,1.6004,215.8,215.67,7.26252529]
[1734506809908,7.26252529,215.74,215.67,7.26252529]
[1734506810106,7.26252529,215.73,215.67,7.26252529]
[1734506810311,7.26252529,215.71,215.64,6.0362]
[1734506810750,7.26252529,215.71,215.65,7.26252529]
[1734506811105,7.26252529,215.71,215.64,13.29872529]
[1734506811624,23.776884,215.73,215.65,7.26252529]
[1734506811816,7.26252529,215.72,215.65,7.26252529]
[1734506812134,31.03940929,215.71,215.65,7.26252529]
[1734506812833,20.0,215.77,215.68,7.26252529]
[1734506813031,7.26252529,215.75,215.69,7.26252529]
[1734506813342,20.0,215.72,215.69,7.26252529]
[1734506813836,7.26252529,215.75,215.69,7.26252529]
[1734506814039,7.26252529,215.76,215.69,7.26252529]
[1734506814443,7.26252529,215.75,215.69,7.26252529]
[1734506814618,7.26252529,215.75,215.64,6.73162147]
[1734506814828,7.26252529,215.75,215.69,7.26252529]
[1734506815616,7.26252529,215.77,215.71,7.26252529]
[1734506816231,7.26252529,215.77,215.65,2.63711862]
[1734506816434,7.26252529,215.76,215.69,7.26252529]
[1734506816745,7.26252529,215.75,215.69,7.26252529]
[1734506819048,7.26252529,215.75,215.64,6.0362]
[1734506819349,7.26252529,215.74,215.68,7.26252529]
[1734506819524,7.26252529,215.73,215.67,7.26252529]
[1734506820742,7.26252529,215.74,215.68,7.26252529]
[1734506822240,7.26252529,215.74,215.67,7.26252529]
[1734506822950,7.26252529,215.74,215.64,6.0362]
[1734506823147,7.26252529,215.74,215.68,7.26252529]
[1734506823350,7.26252529,215.75,215.69,7.26252529]
[1734506824034,20.0,215.75,215.71,7.26252529]
[1734506824234,7.26252529,215.77,215.71,7.26252529]
[1734506824449,7.26252529,215.77,215.7,7.26252529]
[1734506824648,7.26252529,215.76,215.69,7.26252529]
[1734506825551,2.317,215.79,215.69,7.26252529]
[1734506825779,23.776884,215.78,215.69,7.26252529]
[1734506826063,23.776884,215.78,215.65,0.69539825]
[1734506826064,7.26252529,215.77,215.7,7.26252529]
[1734506826224,23.776884,215.78,215.69,7.26252529]
[1734506826225,7.26252529,215.75,215.69,7.26252529]
[1734506826424,7.26252529,215.76,215.69,7.26252529]
[1734506829248,23.776884,215.78,215.69,7.26252529]
[1734506829429,7.26252529,215.76,215.69,7.26252529]
[1734506833049,23.776884,215.78,215.69,7.26252529]
[1734506833236,7.26252529,215.76,215.69,7.26252529]
[1734506834262,23.776884,215.78,215.71,7.26252529]
[1734506834263,7.26252529,215.78,215.71,7.26252529]
[1734506834444,20.0,215.76,215.72,7.26252529]
[1734506834763,7.26252529,215.78,215.72,7.26252529]
[1734506836435,20.0,215.76,215.71,9.21185459]
[1734506836654,7.21252529,215.78,215.65,0.69529337]
[1734506836856,7.21252529,215.78,215.71,7.26252529]
[1734506837059,7.21252529,215.78,215.67,1.95108408]
[1734506837364,7.21252529,215.78,215.71,7.26252529]
[1734506838556,7.26252529,215.77,215.7,7.26252529]
[1734506839132,7.26252529,215.75,215.64,16.4702]
[1734506839463,7.26252529,215.75,215.68,9.21347332]
[1734506839844,7.26252529,215.75,215.69,1.95158376]
[1734506840057,7.26252529,215.75,215.68,7.26252529]
[1734506840249,7.26252529,215.75,215.69,1.95164934]
[1734506840655,7.26252529,215.75,215.68,7.26252529]
[1734506840844,7.26252529,215.69,215.66,1.95164934]
[1734506841049,27.26252529,215.7,215.66,1.95164934]
[1734506841254,20.0,215.7,215.65,1.95268721]
[1734506841769,20.0,215.7,215.64,13.29872529]
[1734506841953,27.26252529,215.7,215.64,6.0362]
[1734506842139,7.26252529,215.69,215.65,1.95243504]
[1734506842458,7.26252529,215.69,215.64,1.9525407]
[1734506842665,7.26252529,215.69,215.63,1.9525407]
[1734506843938,7.26252529,215.69,215.62,7.26252529]
[1734506844147,27.26252529,215.7,215.63,7.26252529]
[1734506846443,7.26252529,215.69,215.62,9.21506599]
[1734506846642,7.26252529,215.69,215.63,1.9525407]
[1734506846847,7.26252529,215.69,215.6,1.9525407]
[1734506847060,7.26252529,215.68,215.61,1.9525407]
[1734506847257,7.26252529,215.7,215.63,7.26252529]
[1734506847560,1.5545,215.72,215.62,7.26252529]
[1734506847561,7.26252529,215.69,215.62,7.26252529]
[1734506847974,7.26252529,215.69,215.61,9.21506599]
[1734506848272,7.26252529,215.69,215.62,1.9525407]
[1734506848446,7.26252529,215.69,215.62,9.21506599]
[1734506848768,7.26252529,215.69,215.62,7.26252529]
[1734506849144,7.26252529,215.69,215.62,1.9525407]
[1734506850148,7.26252529,215.69,215.61,7.26252529]
[1734506850481,7.26252529,215.69,215.62,7.26252529]
[1734506850842,7.26252529,215.69,215.62,9.21645996]
[1734506851047,7.26252529,215.69,215.63,1.95393467]
[1734506851247,7.26252529,215.69,215.62,7.26252529]
[1734506851959,7.26252529,215.68,215.62,1.95393467]
[1734506852155,7.26252529,215.68,215.59,6.0049]
[1734506852156,7.26252529,215.68,215.61,7.26252529]
[1734506852367,7.26252529,215.68,215.62,1.95393467]
[1734506852568,7.26252529,215.67,215.6,1.95393467]
[1734506852778,7.26252529,215.67,215.61,1.95393467]
[1734506853658,7.26252529,215.68,215.61,9.21645996]
[1734506853859,7.26252529,215.68,215.62,1.95393467]
[1734506854073,7.26252529,215.68,215.61,7.26252529]
[1734506854384,7.26252529,215.68,215.61,9.21645996]
[1734506854552,7.26252529,215.68,215.62,1.95393467]
[1734506854879,7.26252529,215.69,215.62,9.21645996]
[1734506855050,7.26252529,215.69,215.63,1.95393467]
[1734506855257,23.776884,215.69,215.63,7.26252529]
[1734506857361,20.0,215.71,215.65,7.26252529]
[1734506857579,20.0,215.7,215.61,1.95165186]
[1734506857777,20.0,215.7,215.66,7.26252529]
[1734506857969,7.26252529,215.76,215.68,7.26252529]
[1734506858285,7.26252529,215.76,215.69,7.26252529]
[1734506858480,7.26252529,215.76,215.68,7.26252529]
[1734506858686,7.26252529,215.75,215.68,7.26252529]
[1734506861261,7.26252529,215.75,215.68,9.21233858]
[1734506861577,7.26252529,215.76,215.69,7.26252529]
[1734506861783,7.26252529,215.75,215.68,7.26252529]
[1734506862859,7.26252529,215.73,215.62,10.4345]
[1734506863056,7.26252529,215.72,215.63,1.9502571]
[1734506863276,7.26252529,215.72,215.65,7.26252529]
[1734506864077,7.26252529,215.73,215.66,7.26252529]
[1734506864286,7.26252529,215.75,215.68,7.26252529]
[1734506864871,7.26252529,215.76,215.69,7.26252529]
[1734506865061,3.9283,215.77,215.68,7.26252529]
[1734506865062,7.26252529,215.75,215.68,7.26252529]
[1734506866390,7.26252529,215.75,215.68,9.21312882]
[1734506866573,7.26252529,215.75,215.68,7.26252529]
[1734506867880,7.26252529,215.75,215.68,9.21281817]
[1734506868083,7.26252529,215.75,215.68,7.26252529]
[1734506870067,7.26252529,215.75,215.68,9.2119736]
[1734506870389,7.26252529,215.75,215.68,7.26252529]
[1734506870776,7.25601419,215.81,215.7,7.26252529]
[1734506870982,7.25601419,215.81,215.68,6.1193]
[1734506870983,7.26252529,215.82,215.74,7.26252529]
[1734506872168,20.0,215.79,215.74,7.26252529]
[1734506872363,7.26252529,215.79,215.72,7.26252529]
[1734506873095,23.9831,215.83,215.72,7.26252529]
[1734506873291,7.26252529,215.8,215.73,7.26252529]
[1734506875983,7.26252529,215.81,215.73,7.26252529]
[1734506876180,20.0,215.78,215.73,7.26252529]
[1734506876682,20.0,215.78,215.72,7.26252529]
[1734506876876,20.0,215.78,215.73,7.26252529]
[1734506877883,20.0,215.78,215.72,7.26252529]
[1734506879173,2.3163,215.87,215.76,7.26252529]
[1734506879382,7.26252529,215.86,215.78,7.26252529]
[1734506879579,7.26252529,215.85,215.78,7.26252529]
[1734506879782,7.26252529,215.84,215.77,7.26252529]
[1734506880591,7.26252529,215.85,215.77,7.26252529]
[1734506881594,7.26252529,215.84,215.76,13.38182529]
[1734506882095,7.26252529,215.84,215.77,7.26252529]
[1734506883984,7.26252529,215.83,215.76,13.38182529]
[1734506884189,7.26252529,215.84,215.76,13.38182529]
[1734506884598,7.26252529,215.83,215.76,6.1193]
[1734506884793,7.26252529,215.82,215.76,6.1193]
[1734506885808,7.26252529,215.83,215.76,6.1193]
[1734506887911,7.26252529,215.82,215.76,6.1193]
[1734506889206,7.26252529,215.78,215.71,6.1193]
[1734506889506,7.26252529,215.78,215.71,13.38182529]
[1734506889694,7.26252529,215.8,215.73,7.26252529]
[1734506889900,7.26252529,215.79,215.72,7.26252529]
[1734506891998,7.26252529,215.78,215.71,6.1193]
[1734506892406,7.26252529,215.79,215.72,7.26252529]
[1734506897585,7.26252529,215.8,215.73,7.26252529]
[1734506897896,7.26252529,215.8,215.71,6.1193]
[1734506897897,7.26252529,215.81,215.74,7.26252529]
[1734506900788,7.26252529,215.87,215.8,7.26252529]
[1734506900991,8.92902529,215.88,215.8,7.26252529]
[1734506901311,8.92902529,215.88,215.81,7.26252529]
[1734506902105,8.92902529,215.88,215.8,7.26252529]
[1734506902294,7.26252529,215.87,215.8,7.26252529]
[1734506902493,7.26252529,215.86,215.79,7.26252529]
[1734506903290,7.26252529,215.87,215.8,7.26252529]
[1734506905126,7.26252529,215.87,215.76,2.27979583]
[1734506905350,7.26252529,215.87,215.8,7.26252529]
[1734506909027,7.26252529,215.86,215.78,7.26252529]
[1734506909233,7.26252529,215.85,215.76,1.5848]
[1734506909532,7.26252529,215.85,215.78,7.26252529]
[1734506910913,7.26252529,215.86,215.78,7.26252529]
[1734506912094,23.776884,215.87,215.8,7.26252529]
[1734506912397,31.03940929,215.87,215.8,7.26252529]
[1734506913136,8.92902529,215.88,215.8,7.26252529]
[1734506913345,8.92902529,215.88,215.81,7.26252529]
[1734506915623,7.26252529,215.89,215.82,7.26252529]
[1734506915829,1.6013,215.93,215.84,7.26252529]
[1734506916026,7.26252529,215.91,215.84,7.26252529]
[1734506916402,7.26252529,215.9,215.83,7.26252529]
[1734506919316,23.776884,215.92,215.83,7.26252529]
[1734506919631,7.26252529,215.9,215.83,7.26252529]
[1734506923303,7.26252529,215.9,215.82,7.26252529]
[1734506925036,7.26252529,215.9,215.82,9.20232743]
[1734506925220,7.26252529,215.9,215.82,7.26252529]
[1734506931415,23.776884,215.92,215.83,7.26252529]
[1734506931612,7.26252529,215.9,215.83,7.26252529]
[1734506932326,7.26252529,215.9,215.8,1.93867874]
[1734506932327,7.26252529,215.9,215.82,7.26252529]
[1734506934533,7.26252529,215.9,215.8,1.93867874]
[1734506934728,7.26252529,215.9,215.82,7.26252529]
[1734506940448,7.26252529,215.91,215.81,0.69487343]
[1734506940741,7.26252529,215.89,215.82,7.26252529]
[1734506940946,7.26252529,215.89,215.82,1.93867874]
[1734506941123,7.26252529,215.89,215.82,7.26252529]
[1734506942126,7.26252529,215.89,215.8,1.93867874]
[1734506942127,7.26252529,215.92,215.84,7.26252529]
[1734506942335,7.26252529,215.91,215.84,7.26252529]
[1734506942745,7.26252529,215.9,215.83,7.26252529]
[1734506943537,7.26252529,215.9,215.83,9.2043488]
[1734506943787,7.26252529,215.9,215.84,1.94182351]
[1734506944332,7.26252529,215.91,215.84,1.94182351]
[1734506944530,7.26252529,215.91,215.84,9.2043488]
[1734506944729,7.26252529,215.9,215.85,1.94182351]
[1734506944937,7.26252529,215.9,215.84,1.94182351]
[1734506945144,7.26252529,215.9,215.85,1.94182351]
[1734506945347,7.26252529,215.9,215.84,1.94182351]
[1734506945518,7.26252529,215.9,215.85,1.94182351]
[1734506945724,7.26252529,215.9,215.79,9.96283472]
[1734506945725,7.26252529,215.9,215.84,1.94182351]
[1734506946046,7.26252529,215.9,215.83,9.2043488]
[1734506946345,7.26252529,215.9,215.84,1.94182351]
[1734506946553,7.26252529,215.9,215.85,1.94182351]
[1734506946750,23.776884,215.92,215.84,1.94182351]
[1734506946952,7.26252529,215.9,215.85,1.94182351]
[1734506947157,7.26252529,215.9,215.84,1.94182351]
[1734506947445,7.26252529,215.9,215.85,1.94182351]
[1734506947754,7.26252529,215.9,215.84,1.94182351]
[1734506947922,7.26252529,215.9,215.85,1.94182351]
[1734506948124,7.26252529,215.9,215.84,1.94182351]
[1734506948324,7.26252529,215.9,215.85,1.94182351]
[1734506948630,7.26252529,215.9,215.84,1.94182351]
[1734506948835,7.26252529,215.9,215.83,7.26252529]
[1734506949133,7.26252529,215.9,215.84,1.943656]
[1734506949331,7.26252529,215.9,215.85,1.943656]
[1734506949532,7.26252529,215.9,215.84,1.943656]
[1734506949741,7.26252529,215.9,215.85,1.943656]
[1734506949950,7.26252529,215.9,215.84,1.943656]
[1734506950259,7.26252529,215.9,215.85,1.943656]
[1734506950472,7.26252529,215.9,215.84,1.943656]
[1734506950633,7.26252529,215.9,215.85,1.943656]
[1734506950957,7.26252529,215.9,215.86,1.943656]
[1734506951287,21.6013,215.93,215.85,7.26252529]
[1734506951555,20.0,215.93,215.87,7.26252529]
[1734506951760,20.0,215.93,215.87,1.943656]
[1734506952066,20.0,215.93,215.86,7.26252529]
[1734506952240,20.0,215.93,215.87,1.94334026]
[1734506952752,20.0,215.93,215.88,1.94334026]
[1734506953127,20.0,215.93,215.87,1.94334026]
[1734506956895,7.26252529,215.93,215.87,1.94334026]
[1734506958377,7.26252529,215.94,215.87,9.20586555]
[1734506958582,7.26252529,215.94,215.88,1.94334026]
[1734506958755,7.26252529,215.94,215.87,7.26252529]
[1734506958948,7.26252529,215.94,215.88,1.94334026]
[1734506959275,7.26252529,215.93,215.88,1.94334026]
[1734506959475,7.26252529,215.93,215.87,1.94334026]
[1734506961644,7.26252529,215.93,215.86,7.26252529]
[1734506961961,7.26252529,215.93,215.87,1.9443576]
[1734506963882,7.26252529,215.94,215.87,9.20688289]
[1734506964083,7.26252529,215.94,215.88,1.9443576]
[1734506964365,7.26252529,215.95,215.87,9.20688289]
[1734506964571,7.26252529,215.93,215.88,1.9443576]
[1734506964779,7.26252529,215.93,215.86,1.9443576]
[1734506964981,7.26252529,215.93,215.87,1.9443576]
[1734506965287,31.03940929,215.94,215.86,9.20688289]
[1734506965607,30.98363026,215.94,215.87,1.9433491]
[1734506966795,7.26252529,215.94,215.87,1.9433491]
[1734506967101,7.26252529,215.94,215.88,1.9433491]
[1734506967309,7.26252529,215.95,215.87,7.26252529]
[1734506967492,7.26252529,215.95,215.87,9.20587439]
[1734506967669,7.26252529,215.95,215.88,1.9433491]
[1734506967870,7.26252529,215.95,215.87,7.26252529]
[1734506968084,7.26252529,215.95,215.87,9.20587439]
[1734506968281,7.26252529,215.95,215.88,1.9433491]
[1734506968487,7.26252529,215.95,215.87,7.26252529]
[1734506968701,7.26252529,215.95,215.88,1.9433491]
[1734506968865,7.26252529,215.95,215.87,9.20587439]
[1734506969186,7.26252529,215.95,215.88,1.9433491]
[1734506970566,7.26252529,215.94,215.88,1.9433491]
[1734506970774,7.26252529,215.94,215.87,7.26252529]
[1734506970973,7.26252529,215.94,215.87,9.20587439]
[1734506971168,7.26252529,215.94,215.88,1.9433491]
[1734506971391,7.26252529,215.94,215.87,7.26252529]
[1734506971595,7.26252529,215.94,215.87,9.20587439]
[1734506971774,7.26252529,215.94,215.87,7.26252529]
[1734506972702,7.26252529,215.94,215.86,9.20645884]
[1734506972909,7.26252529,215.94,215.87,1.94393355]
[1734506973689,20.0,215.96,215.88,7.26252529]
[1734506973897,7.26252529,215.95,215.89,1.94393355]
[1734506974686,20.0,215.97,215.89,1.94393355]
[1734506974687,31.03940929,215.96,215.89,1.94393355]
[1734506974878,23.776884,215.96,215.89,1.94393355]
[1734506975073,31.03940929,215.96,215.89,1.94393355]
[1734506975278,21.5758,215.98,215.89,9.20645884]
[1734506975480,7.26252529,215.97,215.9,1.94393355]
[1734506976005,7.26252529,215.97,215.9,9.20645884]
[1734506976300,7.26252529,215.97,215.91,1.94393355]
[1734506976489,7.26252529,215.97,215.9,7.26252529]
[1734506977090,7.26252529,215.97,215.9,9.20645884]
[1734506977286,7.26252529,215.97,215.91,1.94393355]
[1734506977483,7.26252529,215.97,215.9,7.26252529]
[1734506977881,8.83832529,215.98,215.91,7.26252529]
[1734506978084,7.26252529,215.97,215.9,9.20645884]
[1734506978299,7.26252529,215.97,215.91,1.94271438]
[1734506978499,7.26252529,215.97,215.9,7.26252529]
[1734506979177,7.26252529,215.97,215.9,9.20523967]
[1734506979377,7.26252529,215.97,215.91,1.94271438]
[1734506979578,7.26252529,215.97,215.9,7.26252529]
[1734506980078,7.26252529,215.97,215.89,9.20523967]
[1734506980274,7.26252529,215.97,215.9,1.94271438]
[1734506980599,7.26252529,215.96,215.9,1.94271438]
[1734506981506,7.26252529,215.96,215.9,1.94222648]
[1734506981884,7.26252529,215.96,215.89,7.26252529]
[1734506982285,7.26252529,215.96,215.9,1.94226186]
[1734506983290,1.5758,215.98,215.9,1.94226186]
[1734506983487,7.26252529,215.96,215.9,1.94226186]
[1734506984185,7.26252529,215.96,215.89,7.26252529]
[1734506984699,7.26252529,215.96,215.89,9.20478715]
[1734506984904,7.26252529,215.96,215.9,1.93979251]
[1734506985504,7.26252529,215.96,215.89,7.26252529]
[1734506985890,7.26252529,215.96,215.89,9.2023178]
[1734506986097,7.26252529,215.96,215.9,1.93979251]
[1734506986286,7.26252529,215.96,215.89,7.26252529]
[1734506986686,7.26252529,215.96,215.89,9.2023178]
[1734506986891,7.26252529,215.96,215.9,1.93979251]
[1734506987080,7.26252529,215.96,215.89,7.26252529]
[1734506987281,7.26252529,215.95,215.88,9.2023178]
[1734506987590,7.26252529,215.94,215.89,1.93979251]
[1734506987804,7.26252529,215.94,215.88,1.93979251]
[1734506988015,7.26252529,215.94,215.89,1.93979251]
[1734506988513,7.26252529,215.94,215.88,1.93979251]
[1734506988686,7.26252529,215.94,215.89,1.93979251]
[1734506988884,7.26252529,215.94,215.88,1.93979251]
[1734506989188,7.26252529,215.94,215.89,1.93979251]
[1734506989411,7.26252529,215.94,215.88,1.93979251]
[1734506989597,1.5758,215.98,215.89,1.93979251]
[1734506989598,23.776884,215.98,215.89,1.93979251]
[1734506989800,7.26252529,215.94,215.88,7.26252529]
[1734506989984,7.26252529,215.94,215.89,1.93979251]
[1734506990580,7.26252529,215.95,215.89,1.93979251]
[1734506990785,7.26252529,215.95,215.9,1.93979251]
[1734506991102,7.26252529,215.95,215.89,1.93979251]
[1734506991301,7.26252529,215.95,215.88,7.26252529]
[1734506991508,7.26252529,215.95,215.89,1.94062375]
[1734506991716,7.26252529,215.95,215.9,1.94062375]
[1734506991898,7.26252529,215.95,215.89,9.20314904]
[1734506992220,7.26252529,215.95,215.9,1.94062375]
[1734506993694,7.26252529,215.95,215.89,1.94062375]
[1734506993891,7.26252529,215.95,215.9,1.94062375]
[1734506994087,7.26252529,215.95,215.89,1.94062375]
[1734506994305,7.26252529,215.95,215.9,1.94062375]
[1734506994515,7.26252529,215.95,215.89,1.94062375]
[1734506994812,7.26252529,215.95,215.9,1.94062375]
[1734506994993,7.26252529,215.95,215.89,1.94062375]
[1734506995194,7.26252529,215.95,215.9,1.94062375]
[1734506995515,7.26252529,215.95,215.89,1.94062375]
[1734506995708,7.26252529,215.95,215.9,1.94062375]
[1734506995909,7.26252529,215.95,215.91,1.94062375]
[1734506996117,7.26252529,215.95,215.89,1.94062375]
[1734506996411,7.26252529,215.95,215.9,1.94062375]
[1734506996602,7.26252529,215.95,215.91,1.94062375]
[1734506996910,7.26252529,215.94,215.89,1.94062375]
[1734506997112,23.776884,215.98,215.88,1.94223909]
[1734506997113,7.26252529,215.9,215.88,1.94223909]
[1734506997414,7.26252529,215.9,215.8,13.61642529]
[1734506997415,31.03940929,215.89,215.81,1.94333313]
[1734506997616,7.26252529,215.87,215.82,1.94333313]
[1734506997912,7.26252529,215.87,215.83,1.94333313]
[1734506998107,7.26252529,215.87,215.82,1.94333313]
[1734506998413,7.26252529,215.87,215.83,1.94333313]
[1734506998586,7.26252529,215.87,215.81,1.94333313]
[1734506998789,7.26252529,215.87,215.82,1.94333313]
[1734506998986,7.26252529,215.87,215.83,1.94333313]
[1734506999219,7.26252529,215.87,215.81,1.94333313]
[1734506999515,7.26252529,215.87,215.82,1.94333313]
[1734506999715,7.26252529,215.87,215.81,1.94333313]
[1734506999906,7.26252529,215.87,215.82,1.94333313]
[1734507000222,7.26252529,215.87,215.81,1.94333313]
[1734507000402,7.26252529,215.87,215.82,1.94333313]
[1734507001012,23.776884,215.9,215.82,1.94333313]
[1734507001205,23.776884,215.9,215.74,0.69498671]
[1734507001206,7.26252529,215.83,215.75,6.3539]
[1734507001386,23.776884,215.88,215.7,0.69500249]
[1734507001387,7.26252529,215.78,215.7,6.3539]
[1734507001590,7.26252529,215.78,215.72,7.26252529]
[1734507001894,7.26252529,215.78,215.73,1.94231488]
[1734507002086,7.26252529,215.75,215.74,1.94231488]
[1734507002297,23.776884,215.75,215.74,1.94231488]
[1734507002725,23.776884,215.74,215.66,1.94231488]
[1734507002893,7.26252529,215.71,215.65,1.94231488]
[1734507003217,7.26252529,215.72,215.65,7.26252529]
[1734507003759,7.26252529,215.71,215.61,0.69547577]
[1734507004038,7.26252529,215.71,215.61,1.89601755]
[1734507004235,7.26252529,215.7,215.64,7.26252529]
[1734507005506,7.26252529,215.71,215.65,7.26252529]
[1734507006024,23.776884,215.74,215.64,7.26252529]
[1734507006192,7.26252529,215.71,215.65,7.26252529]
[1734507006703,23.776884,215.74,215.66,7.26252529]
[1734507007018,7.26252529,215.73,215.67,7.26252529]
[1734507007242,31.03940929,215.71,215.62,1.88919396]
[1734507007425,7.26252529,215.67,215.61,7.26252529]
[1734507007721,7.26252529,215.66,215.6,7.26252529]
[1734507008408,7.26252529,215.65,215.59,6.3709]
[1734507008620,7.26252529,215.64,215.59,6.3709]
[1734507008796,7.26252529,215.64,215.58,7.26252529]
[1734507009121,7.26252529,215.64,215.54,0.69560034]
[1734507009122,7.26252529,215.64,215.57,7.26252529]
[1734507010225,7.26252529,215.65,215.59,7.26252529]
[1734507011025,7.26252529,215.64,215.58,7.26252529]
[1734507011209,7.26252529,215.65,215.58,7.26252529]
[1734507011596,7.26252529,215.65,215.59,7.26252529]
[1734507014423,7.26252529,215.65,215.58,7.26252529]
[1734507014740,7.26252529,215.62,215.55,7.26252529]
[1734507016906,7.26252529,215.62,215.56,7.26252529]
[1734507017719,7.26252529,215.62,215.55,7.26252529]
[1734507018026,68.32098516,215.71,215.55,7.26252529]
[1734507018027,7.26252529,215.61,215.55,7.26252529]
[1734507018811,7.26252529,215.62,215.56,7.26252529]
[1734507019024,7.26252529,215.63,215.56,7.26252529]
[1734507020415,7.26252529,215.63,215.54,6.3709]
[1734507020718,7.26252529,215.62,215.54,6.3709]
[1734507021025,7.26252529,215.63,215.56,7.26252529]
[1734507021527,31.03940929,215.62,215.54,6.3709]
[1734507021720,7.26252529,215.57,215.51,7.26252529]
[1734507021920,7.26252529,215.57,215.49,6.4122]
[1734507022131,7.26252529,215.58,215.49,6.4122]
[1734507022622,7.26252529,215.58,215.51,7.26252529]
[1734507023109,7.26252529,215.58,215.52,7.26252529]
[1734507026407,23.776884,215.63,215.53,7.26252529]
[1734507026634,7.26252529,215.59,215.53,7.26252529]
[1734507027015,7.26252529,215.58,215.52,7.26252529]
[1734507027407,7.26252529,215.58,215.49,6.4122]
[1734507027603,7.26252529,215.58,215.51,7.26252529]
[1734507028539,20.0,215.6,215.54,7.26252529]
[1734507028713,27.26252529,215.6,215.54,7.26252529]